Workbook

Sheet Leisure Centre
A1: Leisure Centre 122
B2: 9am | C2: 10am | D2: 11am | E2: 12am | F2: 1pm | G2: 2pm | H2: 3pm | I2: 4pm | J2: 5pm | K2: Capacity
A3: Mon 14th | C3: 122 | D3: 60 | E3: 105 | F3: 96 | G3: 75 | H3: 76 | K3: 122
A4: Tue 15th | C4: 122 | D4: 122 | E4: 107 | F4: 81 | G4: 84 | H4: 77 | K4: 122
A5: Wed 16th | C5: 122 | D5: 114 | E5: 106 | F5: 98 | G5: 70 | H5: 86 | K5: 122
A6: Thur 17th | C6: 122 | D6: 118 | E6: 113 | F6: 116 | G6: 97 | H6: 99 | K6: 122
A7: Fri 18th | C7: 122 | D7: 122 | E7: 97 | F7: 85 | G7: 84 | H7: 83 | K7: 122
A8: Sat 19th | C8: 103 | D8: 101 | E8: 91 | F8: 76 | G8: 52 | H8: 63 | K8: 122

Sheet Old station
A1: Old station 149
B2: 9am | C2: 10am | D2: 11am | E2: 12am | F2: 1pm | G2: 2pm | H2: 3pm | I2: 4pm | J2: 5pm | K2: Capacity
A3: Mon 14th | C3: 149 | D3: 149 | E3: 149 | F3: 149 | G3: 149 | H3: 147 | K3: 149
A4: Tue 15th | C4: 149 | D4: 149 | E4: 149 | F4: 149 | G4: 149 | H4: 144 | K4: 149
A5: Wed 16th | C5: 149 | D5: 149 | E5: 149 | F5: 149 | G5: 149 | H5: 141 | K5: 149
A6: Thur 17th | C6: 149 | D6: 149 | E6: 149 | F6: 148 | G6: 149 | H6: 142 | K6: 149
A7: Fri 18th | C7: 149 | D7: 149 | E7: 149 | F7: 149 | G7: 148 | H7: 147 | K7: 149
A8: Sat 19th | C8: 32 | D8: 56 | E8: 84 | F8: 95 | G8: 103 | H8: 70 | K8: 149

Sheet Sheep St
A1: Shhep Street 77
B2: 9am | C2: 10am | D2: 11am | E2: 12am | F2: 1pm | G2: 2pm | H2: 3pm | I2: 4pm | J2: 5pm | K2: Capacity
A3: Mon 14th | C3: 77 | D3: 77 | E3: 77 | F3: 77 | G3: 77 | H3: 76 | K3: 77
A4: Tue 15th | C4: 77 | D4: 77 | E4: 77 | F4: 77 | G4: 77 | H4: 76 | K4: 77
A5: Wed 16th | C5: 77 | D5: 77 | E5: 77 | F5: 77 | G5: 77 | H5: 75 | K5: 77
A6: Thur 17th | C6: 77 | D6: 77 | E6: 77 | F6: 77 | G6: 77 | H6: 76 | K6: 77
A7: Fri 18th | C7: 77 | D7: 77 | E7: 76 | F7: 77 | G7: 73 | H7: 71 | K7: 77
A8: Sat 19th | C8: 32 | D8: 40 | E8: 51 | F8: 51 | G8: 48 | H8: 44 | K8: 77

Sheet Brewery
A1: Brewery 298
B2: 9am | C2: 10am | D2: 11am | E2: 12am | F2: 1pm | G2: 2pm | H2: 3pm | I2: 4pm | J2: 5pm | K2: Capacity
A3: Mon 14th | C3: 201 | D3: 222 | E3: 251 | F3: 230 | G3: 245 | H3: 272 | K3: 298
A4: Tue 15th | C4: 259 | D4: 272 | E4: 271 | F4: 251 | G4: 276 | H4: 279 | K4: 298
A5: Wed 16th | C5: 227 | D5: 289 | E5: 260 | F5: 247 | G5: 255 | H5: 291 | K5: 298
A6: Thur 17th | C6: 215 | D6: 270 | E6: 259 | F6: 274 | G6: 298 | H6: 291 | K6: 298
A7: Fri 18th | C7: 276 | D7: 294 | E7: 298 | F7: 298 | G7: 275 | H7: 294 | K7: 298
A8: Sat 19th | C8: 208 | D8: 266 | E8: 298 | F8: 283 | G8: 290 | H8: 280 | K8: 298

Sheet Forum
A1: Forum 191
B2: 9am | C2: 10am | D2: 11am | E2: 12am | F2: 1pm | G2: 2pm | H2: 3pm | I2: 4pm | J2: 5pm | K2: Capacity
A3: Mon 14th | C3: 120 | D3: 135 | E3: 160 | F3: 157 | G3: 145 | H3: 151 | K3: 191
A4: Tue 15th | C4: 134 | D4: 167 | E4: 173 | F4: 160 | G4: 166 | H4: 167 | K4: 191
A5: Wed 16th | C5: 126 | D5: 160 | E5: 183 | F5: 155 | G5: 137 | H5: 168 | K5: 191
A6: Thur 17th | C6: 144 | D6: 188 | E6: 190 | F6: 191 | G6: 189 | H6: 179 | K6: 191
A7: Fri 18th | C7: 171 | D7: 191 | E7: 191 | F7: 191 | G7: 188 | H7: 187 | K7: 191
A8: Sat 19th | C8: 163 | D8: 185 | E8: 191 | F8: 191 | G8: 191 | H8: 189 | K8: 191

Sheet Beeches
A1: Beeches 144
B2: 9am | C2: 10am | D2: 11am | E2: 12am | F2: 1pm | G2: 2pm | H2: 3pm | I2: 4pm | J2: 5pm | K2: Capacity
A3: Mon 14th | C3: 135 | D3: 142 | E3: 143 | F3: 138 | G3: 128 | H3: 122 | K3: 144
A4: Tue 15th | C4: 133 | D4: 144 | E4: 143 | F4: 140 | G4: 127 | H4: 116 | K4: 144
A5: Wed 16th | C5: 142 | D5: 144 | E5: 142 | F5: 139 | G5: 137 | H5: 135 | K5: 144
A6: Thur 17th | C6: 144 | D6: 143 | E6: 141 | F6: 143 | G6: 140 | H6: 122 | K6: 144
A7: Fri 18th | C7: 144 | D7: 141 | E7: 144 | F7: 140 | G7: 131 | H7: 124 | K7: 144
A8: Sat 19th | C8: 93 | D8: 97 | E8: 102 | F8: 97 | G8: 90 | H8: 83 | K8: 144

Sheet waterloo
A1: Waterloo 233
B2: 9am | C2: 10am | D2: 11am | E2: 12am | F2: 1pm | G2: 2pm | H2: 3pm | I2: 4pm | J2: 5pm | K2: Capacity
A3: Mon 14th | C3: 219 | D3: 233 | E3: 231 | F3: 226 | G3: 206 | H3: 195 | K3: 233
A4: Tue 15th | C4: 212 | D4: 233 | E4: 226 | F4: 232 | G4: 205 | H4: 190 | K4: 233
A5: Wed 16th | C5: 233 | D5: 233 | E5: 233 | F5: 222 | G5: 199 | H5: 176 | K5: 233
A6: Thur 17th | C6: 233 | D6: 232 | E6: 233 | F6: 230 | G6: 222 | H6: 194 | K6: 233
A7: Fri 18th | C7: 233 | D7: 233 | E7: 233 | F7: 229 | G7: 215 | H7: 207 | K7: 233
A8: Sat 19th | C8: 139 | D8: 159 | E8: 106 | F8: 191 | G8: 167 | H8: 96 | K8: 233

Sheet Abbey
A1: Abbey 97
B2: 9am | C2: 10am | D2: 11am | E2: 12am | F2: 1pm | G2: 2pm | H2: 3pm | I2: 4pm | J2: 5pm | K2: Capacity
A3: Mon 14th | C3: 97 | D3: 96 | E3: 97 | F3: 97 | G3: 97 | H3: 96 | K3: 97
A4: Tue 15th | C4: 97 | D4: 97 | E4: 97 | F4: 95 | G4: 97 | H4: 91 | K4: 97
A5: Wed 16th | C5: 97 | D5: 97 | E5: 97 | F5: 97 | G5: 97 | H5: 90 | K5: 97
A6: Thur 17th | C6: 97 | D6: 97 | E6: 97 | F6: 96 | G6: 92 | H6: 92 | K6: 97
A7: Fri 18th | C7: 95 | D7: 97 | E7: 97 | F7: 95 | G7: 97 | H7: 93 | K7: 97
A8: Sat 19th | C8: 42 | D8: 53 | E8: 73 | F8: 66 | G8: 67 | H8: 30 | K8: 97

Sheet Overview
A2: 2019-01-14 | B2: 10am | C2: 11am | D2: 12am | E2: 1pm | F2: 2pm | G2: 3pm
A3: Leisure Centre 122 | B3: 0 | C3: 62 | D3: 17 | E3: 26 | F3: 47 | G3: 46 | H3: 5 or less spaces
A4: Old Station 149 | B4: 0 | C4: 0 | D4: 0 | E4: 0 | F4: 0 | G4: 2
A5: Sheep Street 77 | B5: 0 | C5: 0 | D5: 0 | E5: 0 | F5: 0 | G5: 1
A6: Brewery 298 | B6: 97 | C6: 76 | D6: 47 | E6: 68 | F6: 53 | G6: 26
A7: Forum 191 | B7: 71 | C7: 56 | D7: 31 | E7: 34 | F7: 46 | G7: 40
A8: Beeches 144 | B8: 9 | C8: 2 | D8: 1 | E8: 6 | F8: 16 | G8: 22
A9: Waterloo 233 | B9: 14 | C9: 0 | D9: 2 | E9: 7 | F9: 27 | G9: 38
A10: Abbey 97 | B10: 0 | C10: 1 | D10: 0 | E10: 0 | F10: 0 | G10: 1
A11: 1312 | B11: =SUM(B3:B10) -> 191 | C11: =SUM(C3:C10) -> 197 | D11: 98 | E11: 141 | F11: 189 | G11: 176
A12: Long stay 701 | B12: =B4+B5+B8+B9+B10 -> 23 | C12: =C4+C5+C8+C9+C10 -> 3 | D12: 3 | E12: 13 | F12: 43 | G12: 64 | H12: 5% or less
B13: =B12/701 -> 0.03281027104 | C13: 0.004279600571 | D13: 0.004279600571 | E13: 0.01854493581 | F13: 0.06134094151 | G13: 0.09129814551
A14: Short stay 611 | B14: =B3+B6+B7 -> 168 | C14: =C3+C6+C7 -> 194 | D14: 95 | E14: 128 | F14: 146 | G14: 112
B15: =B14/611 -> 0.2749590835 | C15: 0.317512275 | D15: 0.1554828151 | E15: 0.209492635 | F15: 0.2389525368 | G15: 0.1833060556
A17: 2019-01-15 | B17: 10am | C17: 11am | D17: 12am | E17: 1pm | F17: 2pm | G17: 3pm
A18: Leisure Centre 122 | B18: 0 | C18: 0 | D18: 15 | E18: 41 | F18: 38 | G18: 45
A19: Old Station 149 | B19: 0 | C19: 0 | D19: 0 | E19: 0 | F19: 0 | G19: 5
A20: Sheep Street 77 | B20: 0 | C20: 0 | D20: 0 | E20: 0 | F20: 0 | G20: 1
A21: Brewery 298 | B21: 39 | C21: 26 | D21: 27 | E21: 47 | F21: 22 | G21: 19
A22: Forum 191 | B22: 57 | C22: 24 | D22: 18 | E22: 31 | F22: 25 | G22: 24
A23: Beeches 144 | B23: 11 | C23: 0 | D23: 1 | E23: 4 | F23: 17 | G23: 28
A24: Waterloo 233 | B24: 21 | C24: 0 | D24: 7 | E24: 1 | F24: 28 | G24: 43
A25: Abbey 97 | B25: 0 | C25: 0 | D25: 0 | E25: 2 | F25: 0 | G25: 6
B26: =SUM(B18:B25) -> 128 | C26: 50 | D26: 68 | E26: 126 | F26: 130 | G26: 171
A27: Long stay 701 | B27: =B19+B20+B23+B24+B25 -> 32 | C27: =C19+C20+C23+C24+C25 -> 0 | D27: 8 | E27: 7 | F27: 45 | G27: 83
A28: 701 | B28: =B27/701 -> 0.04564907275 | C28: =C27/$A$28 -> 0 | D28: 0.01141226819 | E28: 0.009985734665 | F28: 0.06419400856 | G28: 0.1184022825
A29: Short stay 611 | B29: =SUM(B18+B21+B22) -> 96 | C29: =SUM(C18+C21+C22) -> 50 | D29: 60 | E29: 119 | F29: 85 | G29: 88
B30: =B29/613 -> 0.1566068515 | C30: 0.08156606852 | D30: 0.09787928222 | E30: 0.1941272431 | F30: 0.1386623165 | G30: 0.1435562806
A32: 2019-01-16 | B32: 10am | C32: 11am | D32: 12am | E32: 1pm | F32: 2pm | G32: 3pm
A33: Leisure Centre 122 | B33: 0 | C33: 8 | D33: 16 | E33: 24 | F33: 52 | G33: 36
A34: Old Station 149 | B34: 0 | C34: 0 | D34: 0 | E34: 0 | F34: 0 | G34: 8
A35: Sheep Street 77 | B35: 0 | C35: 0 | D35: 0 | E35: 0 | F35: 0 | G35: 2
A36: Brewery 298 | B36: 71 | C36: 9 | D36: 38 | E36: 51 | F36: 43 | G36: 7
A37: Forum 191 | B37: 65 | C37: 31 | D37: 8 | E37: 36 | F37: 54 | G37: 23
A38: Beeches 144 | B38: 2 | C38: 0 | D38: 2 | E38: 5 | F38: 7 | G38: 9
A39: Waterloo 233 | B39: 0 | C39: 0 | D39: 0 | E39: 11 | F39: 34 | G39: 57
A40: Abbey 97 | B40: 0 | C40: 0 | D40: 0 | E40: 0 | F40: 0 | G40: 7
B41: =SUM(B33:B40) -> 138 | C41: 48 | D41: 64 | E41: 127 | F41: 190 | G41: 149
A42: Long stay 701 | B42: =B34+B35+B38+B39+B40 -> 2 | C42: =C34+C35+C38+C39+C40 -> 0 | D42: 2 | E42: 16 | F42: 41 | G42: 83
A43: 701 | B43: =B42/701 -> 0.002853067047 | C43: =C42/701 -> 0 | D43: 0.002853067047 | E43: 0.02282453638 | F43: 0.05848787447 | G43: 0.1184022825
A44: Short stay 611 | B44: =SUM(B33+B36+B37) -> 136 | C44: =SUM(C33+C36+C37) -> 48 | D44: 62 | E44: 111 | F44: 149 | G44: 66
B45: =B44/611 -> 0.2225859247 | C45: =C44/611 -> 0.07855973813 | D45: 0.1014729951 | E45: 0.1816693944 | F45: 0.2438625205 | G45: 0.1080196399
A47: 2019-01-17 | B47: 10am | C47: 11am | D47: 12am | E47: 1pm | F47: 2pm | G47: 3pm
A48: Leisure Centre 122 | B48: 0 | C48: 4 | D48: 9 | E48: 6 | F48: 25 | G48: 23
A49: Old Station 149 | B49: 0 | C49: 0 | D49: 0 | E49: 1 | F49: 0 | G49: 7
A50: Sheep Street 77 | B50: 0 | C50: 0 | D50: 0 | E50: 0 | F50: 0 | G50: 1
A51: Brewery 298 | B51: 83 | C51: 28 | D51: 39 | E51: 24 | F51: 0 | G51: 7
A52: Forum 191 | B52: 47 | C52: 3 | D52: 1 | E52: 0 | F52: 2 | G52: 12
A53: Beeches 144 | B53: 0 | C53: 1 | D53: 3 | E53: 1 | F53: 4 | G53: 22
A54: Waterloo 233 | B54: 0 | C54: 1 | D54: 0 | E54: 3 | F54: 11 | G54: 39
A55: Abbey 97 | B55: 0 | C55: 0 | D55: 0 | E55: 1 | F55: 5 | G55: 5
B56: =SUM(B48:B55) -> 130 | C56: 37 | D56: 52 | E56: 36 | F56: 47 | G56: 116
A57: Long stay 701 | B57: =B49+B50+B53+B54+B55 -> 0 | C57: 2 | D57: 3 | E57: 6 | F57: 20 | G57: 74
A58: 701 | B58: =B57/701 -> 0 | C58: =C57/701 -> 0.002853067047 | D58: 0.004279600571 | E58: 0.008559201141 | F58: 0.02853067047 | G58: 0.1055634807
A59: Short stay 611 | B59: =SUM(B48+B51+B52) -> 130 | C59: 35 | D59: 49 | E59: 30 | F59: 27 | G59: 42
A60: 611 | B60: =B59/611 -> 0.2127659574 | C60: =C59/611 -> 0.05728314239 | D60: 0.08019639935 | E60: 0.04909983633 | F60: 0.0441898527 | G60: 0.06873977087
A62: 2019-01-18 | B62: 10am | C62: 11am | D62: 12am | E62: 1pm | F62: 2pm | G62: 3pm
A63: Leisure Centre 122 | B63: 0 | C63: 0 | D63: 25 | E63: 37 | F63: 38 | G63: 39
A64: Old Station 149 | B64: 0 | C64: 0 | D64: 0 | E64: 0 | F64: 1 | G64: 2
A65: Sheep Street 77 | B65: 0 | C65: 0 | D65: 1 | E65: 0 | F65: 4 | G65: 6
A66: Brewery 298 | B66: 22 | C66: 4 | D66: 0 | E66: 0 | F66: 23 | G66: 4
A67: Forum 191 | B67: 20 | C67: 0 | D67: 0 | E67: 0 | F67: 3 | G67: 4
A68: Beeches 144 | B68: 0 | C68: 3 | D68: 0 | E68: 4 | F68: 13 | G68: 20
A69: Waterloo 233 | B69: 0 | C69: 0 | D69: 0 | E69: 4 | F69: 18 | G69: 26
A70: Abbey 97 | B70: 2 | C70: 0 | D70: 0 | E70: 2 | F70: 0 | G70: 4
B71: =SUM(B63:B70) -> 44 | C71: 7 | D71: 26 | E71: 47 | F71: 100 | G71: 105
A72: Long stay 701 | B72: =SUM(B64+B65+B68+B69+B70) -> 2 | C72: 3 | D72: 1 | E72: 10 | F72: 36 | G72: 58
A73: 701 | B73: =B72/701 -> 0.002853067047 | C73: =C72/701 -> 0.004279600571 | D73: 0.001426533524 | E73: 0.01426533524 | F73: 0.05135520685 | G73: 0.08273894437
A74: Short stay 611 | B74: =SUM(B63+B66+B67) -> 42 | C74: 4 | D74: 25 | E74: 37 | F74: 64 | G74: 47
A75: 611 | B75: =B74/611 -> 0.06873977087 | C75: 0.006546644845 | D75: 0.04091653028 | E75: 0.06055646481 | F75: 0.1047463175 | G75: 0.07692307692
A77: 2019-01-19 | B77: 10am | C77: 11am | D77: 12am | E77: 1pm | F77: 2pm | G77: 3pm
A78: Leisure Centre 122 | B78: 19 | C78: 21 | D78: 31 | E78: 46 | F78: 70 | G78: 59
A79: Old Station 149 | B79: 117 | C79: 93 | D79: 65 | E79: 54 | F79: 46 | G79: 79
A80: Sheep Street 77 | B80: 45 | C80: 37 | D80: 26 | E80: 26 | F80: 29 | G80: 44
A81: Brewery 298 | B81: 90 | C81: 32 | D81: 0 | E81: 15 | F81: 8 | G81: 18
A82: Forum 191 | B82: 28 | C82: 6 | D82: 0 | E82: 0 | F82: 0 | G82: 2
A83: Beeches 144 | B83: 51 | C83: 47 | D83: 42 | E83: 47 | F83: 54 | G83: 61
A84: Waterloo 233 | B84: 94 | C84: 74 | D84: 38 | E84: 42 | F84: 66 | G84: 137
A85: Abbey 97 | B85: 55 | C85: 44 | D85: 24 | E85: 31 | F85: 30 | G85: 67
B86: =SUM(B78:B85) -> 499 | C86: =SUM(C78:C85) -> 354 | D86: 226 | E86: 261 | F86: 303 | G86: 467
A87: Long stay 701 | B87: =B79+B80+B83+B84+B85 -> 362 | C87: =C79+C80+C83+C84+C85 -> 295 | D87: =D79+D80+D83+D84+D85 -> 195 | E87: 200 | F87: 225 | G87: 388
A88: 701 | B88: =B87/701 -> 0.5164051355 | C88: =C87/701 -> 0.4208273894 | D88: 0.2781740371 | E88: 0.2853067047 | F88: =F87/701 -> 0.3209700428 | G88: =G87/701 -> 0.5534950071
A89: Short stay 611 | B89: =SUM(B78+B81+B82) -> 137 | C89: =SUM(C78+C81+C82) -> 59 | D89: =SUM(D78+D81+D82) -> 31 | E89: 61 | F89: 78 | G89: 79
A90: 611 | B90: =B89/611 -> 0.2242225859 | C90: 0.09656301146 | D90: 0.05073649755 | E90: 0.09983633388 | F90: 0.1276595745 | G90: 0.1292962357
